bitfinex-derivatives/quotes_SOLF0:USTF0_20220110
["timestamp","ask_amount","ask_price","bid_price","bid_amount"]
[1641831774958,34.71609809,136.15,136.04,35.01313846]
[1641831775160,34.71609809,136.15,136.04,39.01313846]
[1641831775369,34.71609809,136.15,136.04,27.66479]
[1641831775559,15.409198,136.18,136.07,7.34672887]
[1641831775758,15.409198,136.18,136.07,11.34672887]
[1641831775958,15.409198,136.18,136.12,4.0]
[1641831776158,15.409198,136.18,136.13,4.0]
[1641831776358,15.409198,136.18,136.07,9.18272887]
[1641831776561,5.87598737,136.15,136.07,7.34672887]
[1641831776959,27.66479,136.08,136.05,15.33026433]
[1641831777961,5.87567772,136.16,136.06,7.34726865]
[1641831778163,5.87567772,136.16,136.05,15.33026433]
[1641831778360,45.92633786,136.23,136.1,4.0]
[1641831778361,8.45633786,136.23,136.1,4.0]
[1641831778561,8.45633786,136.23,136.12,7.34403114]
[1641831779061,27.66479,136.2,136.15,4.0]
[1641831779261,27.66479,136.2,136.12,35.00882114]
[1641831779460,27.66479,136.2,136.15,4.0]
[1641831779661,27.66479,136.22,136.15,4.0]
[1641831779861,59.1041154,136.35,136.17,4.0]
[1641831779862,15.79372235,136.31,136.17,4.0]
[1641831780061,15.79372235,136.31,136.15,7.34214391]
[1641831780264,15.79372235,136.31,136.23,4.0]
[1641831780663,15.79372235,136.31,136.24,4.0]
[1641831780867,8.45157844,136.31,136.16,13.17560487]
[1641831781065,33.5354844,136.28,136.2,4.0]
[1641831781264,33.5354844,136.28,136.14,7.34268302]
[1641831781265,5.87153907,136.26,136.14,7.34268302]
[1641831781464,5.87153907,136.26,136.15,4.0]
[1641831781866,5.87281082,136.23,136.14,4.0]
[1641831782265,5.87411314,136.2,136.11,15.33026433]
[1641831782466,5.87411314,136.2,136.1,4.0]
[1641831782665,5.87411314,136.2,136.11,4.0]
[1641831782868,13.22483396,136.17,136.09,15.33026433]
[1641831783065,55.32958,136.1,136.09,15.33026433]
[1641831783266,55.32958,136.1,136.08,15.33026433]
[1641831783865,55.32958,136.1,136.08,4.19026433]
[1641831784067,55.32958,136.1,136.05,57.89437973]
[1641831784268,5.87934348,136.07,136.05,57.89437973]
[1641831784469,5.87934348,136.07,136.03,41.41255288]
[1641831784868,7.05646868,136.05,136.01,10.31783757]
[1641831785167,55.32958,136.02,135.99,39.2122173]
[1641831785370,55.32958,136.02,135.98,20.66391566]
[1641831785568,62.38751479,136.02,135.91,20.66391566]
[1641831785768,8.0,136.01,135.91,20.66391566]
[1641831785969,7.36051818,135.97,135.91,20.66391566]
[1641831786168,7.36214386,135.94,135.87,74.09736592]
[1641831786570,7.36214386,135.94,135.81,4.0]
[1641831786771,8.0,135.96,135.84,7.359164]
[1641831786970,55.32958,136.02,135.88,4.0]
[1641831787169,55.32958,136.02,135.95,4.0]
[1641831787369,55.32958,136.02,135.97,4.0]
[1641831787569,55.32958,136.02,135.96,4.0]
[1641831787769,7.35835173,136.01,135.89,4.0]
[1641831787974,7.35835173,136.01,135.88,7.35672773]
[1641831788270,8.0,136.0,135.77,1.838]
[1641831788472,37.43990579,136.0,135.8,33.43990579]
[1641831788671,8.0,136.0,135.86,4.0]
[1641831789071,27.66479,135.98,135.87,7.35753964]
[1641831789270,27.66479,135.98,135.85,27.66479]
[1641831789473,27.66479,135.98,135.85,31.66479]
[1641831789671,27.66479,135.98,135.85,27.66479]
[1641831789871,8.0,135.97,135.85,31.66479]
[1641831790171,27.66479,135.98,135.94,4.0]
[1641831790373,13.53992448,136.01,135.96,4.0]
[1641831790572,13.53992448,136.01,135.92,1.44689263]
[1641831790573,13.53992448,136.01,135.98,4.0]
[1641831790771,13.53992448,136.01,136.0,4.0]
[1641831790973,13.53992448,136.01,135.98,4.0]
[1641831791171,13.53992448,136.01,136.0,4.0]
[1641831791372,13.53992448,136.01,135.94,1.838]
[1641831791672,7.36133093,135.95,135.83,0.1004]
[1641831791871,20.89827621,136.01,135.88,0.1004]
[1641831792073,13.53992448,136.01,135.93,0.1004]
[1641831792575,5.88253735,136.0,135.96,0.1004]
[1641831792775,5.88253735,136.0,135.94,0.1004]
[1641831792975,5.88253735,136.0,135.88,7.35699834]
[1641831793177,27.66479,135.99,135.88,27.66479]
[1641831793376,5.88402133,135.97,135.91,4.0]
[1641831793575,13.53992448,136.01,135.96,0.1004]
[1641831793775,13.53992448,136.01,136.0,4.1004]
[1641831793975,22.34379827,136.08,136.0,4.1004]
[1641831794179,22.34379827,136.08,135.99,4.0]
[1641831794577,7.05472307,136.08,136.0,7.35023888]
[1641831794777,80.38623888,136.16,136.06,0.1004]
[1641831794978,7.35023888,136.16,136.0,7.35023888]
[1641831795178,9.77740828,136.11,136.02,0.1004]
[1641831795379,3.8996,136.1,135.98,27.66479]
[1641831795580,5.87997919,136.06,135.99,0.1004]
[1641831795780,13.53849593,136.01,135.96,4.0]
[1641831795979,7.02582105,136.01,136.0,11.44982858]
[1641831796181,7.02582105,136.01,136.0,13.28782858]
[1641831796380,7.02582105,136.01,136.0,1.9384]
[1641831796580,7.02582105,136.01,136.0,0.1004]
[1641831796781,7.02582105,136.01,136.0,1.9384]
[1641831796981,23.74723881,136.2,136.01,5.87583758]
[1641831797181,15.2890752,136.2,136.18,0.1004]
[1641831797681,27.66479,136.24,136.14,26.35062437]
[1641831797881,27.66479,136.24,136.13,27.66479]
[1641831798283,31.66479,136.24,136.13,27.66479]
[1641831798581,4.0,136.21,136.12,1.836]
[1641831798782,27.66479,136.24,136.03,68.0528]
[1641831798984,4.0,136.13,136.04,1.836]
[1641831799183,27.66479,136.15,136.05,27.66479]
[1641831799683,4.0,136.21,136.06,1.836]
[1641831799883,5.87260333,136.23,136.06,1.836]
[1641831800082,4.0,136.19,136.06,1.836]
[1641831800284,7.34591934,136.22,136.07,7.34591934]
[1641831800483,4.0,136.17,136.07,7.34591934]
[1641831800683,4.0,136.15,136.07,7.34591934]
[1641831800886,5.87457897,136.18,136.07,7.34591934]
[1641831801085,31.66479,136.19,136.07,7.34591934]
[1641831801284,27.66479,136.19,136.05,35.01151887]
[1641831801485,4.0,136.15,136.05,27.66479]
[1641831801684,4.0,136.17,136.05,27.66479]
[1641831802084,33.53934672,136.19,136.05,27.66479]
[1641831802285,4.0,136.18,136.06,7.34618916]
[1641831802485,4.0,136.11,136.04,1.836]
[1641831802785,4.0,136.07,135.98,1.836]
[1641831802984,5.87934502,136.07,135.96,1.837]
[1641831803185,27.66479,136.02,135.95,7.35213028]
[1641831803388,27.66479,136.02,135.94,27.66479]
[1641831803587,31.66479,136.02,135.94,27.66479]
[1641831803884,27.66479,136.02,135.94,27.66479]
[1641831804086,11.34969866,136.15,136.0,7.34969866]
[1641831804285,15.2890752,136.13,136.0,7.34969866]
[1641831804486,21.16593132,136.13,136.01,1.837]
[1641831804785,4.0,136.07,135.97,7.35131956]
[1641831804986,5.87900126,136.08,135.97,7.35131956]
[1641831805184,27.66479,136.07,135.97,7.35131956]
[1641831805385,4.0,136.06,135.97,7.35131956]
[1641831805586,31.66479,136.07,135.97,7.35131956]
[1641831805786,27.66479,136.07,135.97,7.35131956]
[1641831807288,27.66479,136.07,135.95,1.837]
[1641831807488,27.66479,136.07,135.95,7.35213028]
[1641831807890,4.0,136.0,135.95,7.35213028]
[1641831808090,9.88002979,136.06,135.95,7.35213028]
[1641831808091,4.0,136.04,135.95,7.35213028]
[1641831808290,4.0,136.04,135.92,27.66479]
[1641831808493,5.88140962,136.03,135.92,7.35402265]
[1641831808690,4.0,135.96,135.92,7.35402265]
[1641831809092,4.0,135.94,135.88,7.355916]
[1641831809292,33.54748685,136.0,135.89,27.66479]
[1641831809491,33.54748685,136.0,135.89,35.02043546]
[1641831809691,7.05639254,136.05,135.89,27.66479]
[1641831809892,15.2890752,136.08,135.97,7.35104936]
[1641831810095,15.2890752,136.08,135.98,7.35077918]
[1641831810292,15.2890752,136.08,135.99,1.837]
[1641831810493,15.2890752,136.08,135.99,7.34996876]
[1641831810693,5.87849188,136.09,135.97,7.35131956]
[1641831810894,5.87849188,136.09,135.99,7.34996876]
[1641831811098,7.05307321,136.12,135.99,7.34996876]
[1641831811296,7.05307321,136.12,136.01,27.66479]
[1641831811496,7.05307321,136.12,136.01,35.01394852]
[1641831812094,27.66479,136.13,136.01,35.01394852]
[1641831812295,27.66479,136.13,136.02,1.837]
[1641831812694,31.66479,136.13,136.02,1.837]
[1641831813097,27.66479,136.13,136.02,1.837]
[1641831813496,15.2890752,136.17,136.06,7.34645901]
[1641831813700,15.2890752,136.17,136.12,7.3429526]
[1641831813898,15.2890752,136.17,136.13,1.836]
[1641831815100,15.2890752,136.17,136.08,9.18110999]
[1641831815300,31.66479,136.21,136.1,27.66479]
[1641831815499,27.66479,136.21,136.1,35.00909082]
[1641831815802,4.0,136.2,136.1,35.00909082]
[1641831816000,31.66479,136.21,136.11,1.836]
[1641831816206,27.66479,136.21,136.11,1.836]
[1641831816400,42.9538652,136.23,136.11,1.836]
[1641831816601,46.9538652,136.23,136.11,1.836]
[1641831816800,46.9538652,136.23,136.12,7.34322221]
[1641831817002,15.2890752,136.23,136.13,1.835]
[1641831817203,2.58864667,136.22,136.2,35.00370091]
[1641831818201,4.0,136.31,136.2,35.00370091]
[1641831818202,2.58864667,136.29,136.2,35.00370091]
[1641831818401,2.58864667,136.29,136.21,1.835]
[1641831819404,4.0,136.28,136.15,1.834]
[1641831819601,7.34214391,136.29,136.14,7.34214391]
[1641831819802,30.25343667,136.3,136.19,7.33918021]
[1641831820002,2.58864667,136.3,136.19,7.33918021]
[1641831820201,2.58864667,136.3,136.2,1.834]
[1641831820601,4.0,136.32,136.13,1.834]
[1641831820802,5.86993091,136.29,136.11,5.99421112]
[1641831821001,4.0,136.24,136.11,5.99421112]
[1641831821204,27.66479,136.26,136.13,35.00693391]
[1641831821604,4.0,136.2,136.13,35.00693391]
[1641831821802,7.34591934,136.21,136.11,5.99421112]
[1641831822004,4.0,136.16,136.11,4.15921112]
[1641831822604,4.0,136.21,136.11,4.15921112]
[1641831822809,5.87220181,136.24,136.11,4.15921112]
[1641831823006,15.2890752,136.25,136.12,1.836]
[1641831823205,15.2890752,136.25,136.24,55.32958]
[1641831823404,15.2890752,136.3,136.24,55.32958]
[1641831824106,15.2890752,136.3,136.29,7.33299113]
[1641831824310,27.19257098,136.33,136.3,1.834]
[1641831825105,105.84007267,136.42,136.3,1.834]
[1641831825106,15.33674568,136.39,136.3,1.834]
[1641831825307,15.33674568,136.39,136.32,27.66479]
[1641831826204,27.66479,136.42,136.32,27.66479]
[1641831826405,27.66479,136.42,136.33,1.833]
[1641831826607,31.66479,136.42,136.33,1.833]
[1641831826807,27.66479,136.42,136.33,1.833]
[1641831827207,4.0,136.39,136.33,1.833]
[1641831827407,31.66479,136.42,136.32,27.66479]
[1641831827608,4.0,136.4,136.32,27.66479]
[1641831828008,27.66479,136.42,136.32,27.66479]
[1641831828207,27.66479,136.42,136.33,31.15206472]
[1641831828407,4.0,136.4,136.33,29.31906472]
[1641831828609,27.66479,136.42,136.33,29.31906472]
[1641831828808,4.0,136.34,136.28,7.33379781]
[1641831829210,4.0,136.3,136.28,7.33379781]
[1641831829711,4.0,136.34,136.23,27.66479]
[1641831829907,4.0,136.39,136.25,1.834]
[1641831830108,4.0,136.4,136.3,7.33245344]
[1641831830309,4.0,136.39,136.3,7.33245344]
[1641831830508,4.0,136.43,136.33,4.1537481]
[1641831830710,4.0,136.42,136.33,11.48485766]
[1641831830909,4.0,136.42,136.34,1.833]
[1641831831310,4.0,136.43,136.33,11.48485766]
[1641831831511,27.66479,136.44,136.33,13.31685766]
[1641831832013,7.33433569,136.42,136.33,4.1537481]
[1641831832211,4.0,136.39,136.33,4.1537481]
[1641831832613,4.0,136.37,136.33,4.1537481]
[1641831832813,7.33756466,136.36,136.33,4.81e-05]
[1641831833016,4.0,136.34,136.25,1.833]
[1641831833214,4.0,136.29,136.21,7.33756466]
[1641831833416,4.0,136.27,136.2,27.66479]
[1641831833614,27.66479,136.29,136.2,27.66479]
[1641831833615,4.0,136.26,136.2,27.66479]
[1641831833814,4.0,136.24,136.2,27.66479]
[1641831834015,4.0,136.25,136.2,27.66479]
[1641831834215,27.66479,136.29,136.2,27.66479]
[1641831834414,4.0,136.21,136.16,75.0266]
[1641831834713,4.0,136.17,136.12,1.835]
[1641831834913,4.0,136.14,136.1,1.836]
[1641831835115,4.0,136.14,136.05,7.34645901]
[1641831835416,31.66479,136.14,136.06,1.836]
[1641831835615,31.66479,136.14,136.05,27.66479]
[1641831835616,5.87450061,136.19,136.05,27.66479]
[1641831835815,4.0,136.23,136.11,7.34322221]
[1641831836016,4.0,136.15,136.08,29.37288882]
[1641831836216,11.34618916,136.2,136.08,29.37288882]
[1641831836417,7.34618916,136.2,136.08,29.37288882]
[1641831836618,4.0,136.13,136.08,29.37288882]
[1641831836820,4.0,136.12,136.06,1.836]
[1641831837019,4.0,136.14,136.03,27.66479]
[1641831837222,4.0,136.07,136.03,27.66479]
[1641831837420,31.66479,136.13,136.01,7.34834846]
[1641831837719,4.0,136.11,136.02,1.837]
[1641831837919,4.0,136.11,136.01,7.34834846]
[1641831838119,4.0,136.11,136.02,1.837]
[1641831838521,4.0,136.2,136.02,1.837]
[1641831838720,4.0,136.22,136.08,7.34457053]
[1641831838921,11.04795841,136.21,136.08,7.34457053]
[1641831839123,18.39360795,136.21,136.06,9.18164954]
[1641831839323,4.0,136.13,136.07,27.66479]
[1641831839523,27.66479,136.17,136.07,27.66479]
[1641831839721,4.0,136.11,136.06,9.18164954]
[1641831839922,4.0,136.07,136.05,1.836]
[1641831840122,4.0,136.06,135.97,1.837]
[1641831840323,4.0,136.0,135.98,7.35023888]
[1641831840523,4.0,136.07,135.98,7.35023888]
[1641831840725,4.0,136.07,135.96,7.35104936]
[1641831840925,4.0,136.05,135.97,1.838]
[1641831841125,4.0,136.05,135.96,7.35104936]
[1641831841323,31.66479,136.06,135.97,27.66479]
[1641831841524,4.0,136.03,135.99,7.34969866]
[1641831841825,4.0,136.1,136.02,7.34753857]
[1641831842024,18.39519631,136.2,136.05,7.34645901]
[1641831842225,4.0,136.14,136.09,7.34430082]
[1641831842525,0.86607101,136.1,136.08,7.34484025]
[1641831843324,0.86607101,136.1,136.09,29.50179]
[1641831843526,0.86607101,136.1,136.09,27.66479]
[1641831843726,0.86607101,136.1,136.09,35.0077426]
[1641831843925,0.41967101,136.1,136.09,42.7219748]
[1641831844827,0.41967101,136.1,136.09,36.8437426]
[1641831845627,0.41967101,136.1,136.09,35.0077426]
[1641831845829,0.41967101,136.1,136.09,36.8437426]
[1641831846828,27.66479,136.25,136.1,5.45797189]
[1641831847031,4.0,136.21,136.1,7.29397189]
[1641831847231,7.34160487,136.29,136.1,1.836]
[1641831847431,4.0,136.26,136.18,27.66479]
[1641831847832,4.0,136.26,136.2,7.3381031]
[1641831848032,31.66479,136.31,136.2,7.3381031]
[1641831848233,4.0,136.23,136.2,7.3381031]
[1641831848433,4.0,136.22,136.2,7.3381031]
[1641831848634,4.0,136.22,136.18,27.66479]
[1641831848835,4.0,136.19,136.17,7.33998826]
[1641831849035,4.0,136.24,136.14,7.34160487]
[1641831849234,4.0,136.2,136.14,7.34160487]
[1641831849433,4.0,136.17,136.14,7.34160487]
[1641831849636,4.0,136.23,136.14,7.34160487]
[1641831849836,31.66479,136.25,136.13,27.66479]
[1641831850034,4.0,136.21,136.13,27.66479]
[1641831850234,4.0,136.21,136.17,7.33998826]
[1641831850436,4.0,136.29,136.17,7.33998826]
[1641831850636,4.0,136.23,136.17,7.33998826]
[1641831850836,4.0,136.18,136.15,9.17579648]
[1641831851034,4.0,136.25,136.16,7.34052705]
[1641831851233,4.0,136.19,136.16,7.34052705]
[1641831851434,4.0,136.23,136.16,7.34052705]
[1641831851835,27.66479,136.24,136.16,7.34052705]
[1641831852337,4.0,136.2,136.16,7.34052705]
[1641831852537,27.66479,136.24,136.16,7.34052705]
[1641831852738,31.66479,136.24,136.13,7.34214391]
[1641831852937,4.0,136.19,136.14,1.835]
[1641831853138,4.0,136.15,136.13,7.34214391]
[1641831853340,4.0,136.14,136.13,7.34214391]
[1641831853542,4.0,136.15,136.13,7.34214391]
[1641831853739,27.66479,136.2,136.13,7.34214391]
[1641831853940,4.0,136.15,136.13,7.34214391]
[1641831854139,4.0,136.14,136.13,7.34214391]
[1641831854539,4.0,136.14,136.13,4.391e-05]
[1641831854739,8.0,136.14,136.09,4.15901451]
[1641831854941,4.0,136.1,136.03,1.836]
[1641831855139,9.87615002,136.15,135.97,1.837]
[1641831855339,31.66479,136.12,136.03,27.66479]
[1641831855539,4.0,136.07,136.03,27.66479]
[1641831855740,31.66479,136.12,136.03,27.66479]
[1641831856140,4.0,136.07,136.03,27.66479]
[1641831856339,4.0,136.07,136.01,27.66479]
[1641831856540,4.0,136.08,136.01,27.66479]
[1641831856741,4.0,136.02,135.99,1.837]
[1641831856941,4.0,136.02,135.98,7.34942858]
[1641831857141,4.0,135.99,135.97,1.837]
[1641831857343,4.0,135.98,135.96,15.36464817]
[1641831857545,4.0,136.02,135.95,22.71542735]
[1641831857741,27.66479,136.05,135.95,15.36464817]
[1641831857942,7.34996876,136.12,135.99,7.34861846]
[1641831858341,7.34996876,136.12,136.0,1.837]
[1641831858743,4.0,136.1,136.0,1.837]
[1641831858941,5.87776548,136.11,135.98,1.837]
[1641831859141,9.87948392,136.07,135.95,27.40245419]
[1641831859342,27.66479,136.0,135.95,25.56545419]
[1641831860543,27.66479,136.0,135.95,15.36464817]
[1641831860743,4.0,135.99,135.89,1.838]
[1641831860948,27.66479,136.0,135.88,29.41284606]
[1641831861146,4.0,135.95,135.87,15.36464817]
[1641831861347,27.66479,135.9,135.87,15.36464817]
[1641831861645,31.66479,135.9,135.82,50.38724849]
[1641831861845,27.66479,135.9,135.82,50.38724849]
[1641831862046,4.0,136.0,135.86,7.35564546]
[1641831862245,4.0,135.99,135.84,7.35672773]
[1641831862445,5.88435395,135.96,135.83,1.839]
[1641831862647,4.0,135.89,135.82,15.36464817]
[1641831862845,4.0,135.87,135.83,28.10542947]
[1641831863246,4.0,135.86,135.83,28.10542947]
[1641831863446,59.32958,135.84,135.8,40.9474931]
[1641831863646,4.0,135.83,135.8,40.9474931]
[1641831863846,55.32958,135.84,135.8,40.9474931]
[1641831864047,55.32958,135.84,135.74,11.36241487]
[1641831865047,27.66479,135.84,135.74,4.0]
[1641831865249,11.36078908,135.92,135.8,7.359164]
[1641831865447,35.02557908,135.92,135.8,7.359164]
[1641831865647,35.02557908,135.92,135.82,4.0]
[1641831865847,35.02557908,135.92,135.84,4.0]
[1641831866248,35.02557908,135.92,135.85,1.839]
[1641831866447,35.02557908,135.92,135.81,1.84]
[1641831867048,35.02557908,135.92,135.81,5.84]
[1641831867348,36.4967471,135.98,135.81,5.84]
[1641831867349,27.66479,135.97,135.84,11.35672773]
[1641831867548,27.66479,135.97,135.86,5.88836783]
[1641831867748,27.66479,135.97,135.88,11.35456351]
[1641831867949,27.66479,135.99,135.89,1.839]
[1641831868148,27.66479,135.99,135.9,4.0]
[1641831868348,7.35213028,136.08,135.93,7.35213028]
[1641831868548,7.35348187,136.06,135.94,1.837]
[1641831868747,5.88010968,136.06,135.91,1.838]
[1641831868947,13.23359155,136.06,135.93,7.35186002]
[1641831869149,5.88100487,136.04,135.91,1.838]
[1641831869348,27.66479,136.01,135.89,29.50279]
[1641831869648,27.66479,136.01,135.91,7.35294118]
[1641831869847,27.66479,136.01,135.92,1.838]
[1641831870149,7.35186002,136.09,135.94,4.0]
[1641831870350,7.35186002,136.09,135.95,1.838]
[1641831870748,4.0,136.1,135.96,7.35050902]
[1641831871249,4.0,136.09,135.96,7.35050902]
[1641831871449,27.66479,136.08,135.96,7.35050902]
[1641831872048,27.66479,136.08,135.97,4.0]
[1641831872250,27.66479,136.1,135.98,7.34915852]
[1641831872452,37.47,136.13,136.03,7.34672887]
[1641831872650,37.47,136.13,136.04,7.34591934]
[1641831872850,72.479,136.2,136.09,7.34349183]
[1641831873054,48.29098493,136.24,136.09,7.34349183]
[1641831873251,40.9474931,136.24,136.14,7.34052705]
[1641831873954,7.34430082,136.23,136.15,1.835]
[1641831874152,4.0,136.2,136.06,7.34484025]
[1641831874551,27.66479,136.25,136.05,4.0]
[1641831874751,27.66479,136.25,136.14,7.34052705]
[1641831875553,27.66479,136.25,136.14,11.34052705]
[1641831876052,27.66479,136.25,136.17,4.0]
[1641831876251,27.66479,136.25,136.18,4.0]
[1641831876452,27.66479,136.25,136.15,1.835]
[1641831876653,27.66479,136.25,136.14,9.17552705]
[1641831876852,27.66479,136.25,136.13,1.835]
[1641831877152,7.34457053,136.22,136.1,27.66479]
[1641831877353,5.87259873,136.23,136.08,5.835]
[1641831877553,4.0,136.24,136.11,4.0]
[1641831877554,27.66479,136.2,136.11,4.0]
[1641831877753,27.66479,136.2,136.13,4.0]
[1641831878553,11.34214391,136.27,136.14,4.0]
[1641831878753,7.34214391,136.27,136.13,7.34106592]
[1641831878953,3.9999,136.26,136.14,1.835]
[1641831879153,7.34160487,136.28,136.13,1.835]
[1641831879555,27.66479,136.24,136.15,7.34025764]
[1641831879756,31.66469,136.24,136.16,1.835]
[1641831879958,3.9999,136.22,136.15,4.15835118]
[1641831880155,3.9999,136.22,136.15,5.99335118]
[1641831880566,3.9999,136.21,136.15,5.99335118]
[1641831880762,3.9999,136.18,136.09,7.34322221]
[1641831880963,3.9999,136.16,136.09,7.34322221]
[1641831881460,7.34510999,136.21,136.09,7.34322221]
[1641831881461,27.66479,136.17,136.09,7.34322221]
[1641831881660,3.9999,136.15,136.09,7.34322221]
[1641831881862,27.66479,136.17,136.07,1.835]
[1641831882061,3.9999,136.12,136.06,1.836]
[1641831882263,7.34834846,136.15,136.03,27.66479]
[1641831882463,3.9999,136.09,136.03,27.66479]
[1641831882662,3.9999,136.07,136.0,7.34834846]
[1641831883162,9.87710852,136.13,135.98,1.837]
[1641831883163,3.9999,136.06,135.98,1.837]
[1641831883365,3.9999,136.02,135.97,1.837]
[1641831883562,27.66479,136.02,135.97,1.837]
[1641831883968,3.9999,136.06,135.95,1.838]
[1641831884166,3.9999,136.07,135.96,7.35023888]
[1641831884466,3.9999,136.07,135.95,7.35077918]
[1641831884665,7.34969866,136.13,135.98,7.34915852]
[1641831884866,7.34969866,136.13,135.99,1.837]
[1641831885166,3.9999,136.15,136.03,7.34672887]
[1641831885366,3.9999,136.17,136.05,7.34564954]
[1641831885568,31.66469,136.17,136.05,7.34564954]
[1641831885770,3.9999,136.13,136.06,1.836]
[1641831886070,3.9999,136.12,136.05,1.836]
[1641831886267,3.9999,136.09,136.03,1.837]
[1641831886468,5.87669986,136.14,135.98,1.837]
[1641831886669,13.22558834,136.14,135.99,7.34888848]
[1641831887068,3.9999,136.09,136.0,1.837]
[1641831887268,9.87669986,136.14,136.0,1.837]
[1641831887468,27.66479,136.03,135.97,7.34996876]
[1641831888271,7.34861846,136.15,135.99,7.34861846]
[1641831888470,3.9999,136.12,135.99,7.34861846]
[1641831888671,3.9999,136.12,136.0,1.837]
[1641831888870,7.34861846,136.15,136.0,1.837]
[1641831889170,3.9999,136.09,136.0,1.837]
[1641831889372,4.0,136.14,136.0,1.837]
[1641831889572,3.9999,136.07,136.0,29.50179]
[1641831889772,3.9999,136.07,136.0,27.66479]
[1641831889974,31.66469,136.11,136.0,27.66479]
[1641831890174,7.34618916,136.19,136.04,7.34618916]
[1641831890373,7.34618916,136.19,136.05,1.836]
[1641831890374,3.9999,136.13,136.05,1.836]
[1641831890572,9.8747739,136.18,136.02,1.836]
[1641831890773,3.9999,136.13,136.04,1.837]
[1641831890976,7.34726865,136.17,136.03,1.836]
[1641831891175,3.9999,136.12,136.03,1.836]
[1641831891375,5.87552208,136.16,136.03,1.836]
[1641831891577,27.66479,136.13,136.03,1.836]
[1641831891775,3.9999,136.07,136.0,29.50079]
[1641831891975,3.9999,136.07,135.97,31.23147384]
[1641831892175,4.0,136.1,135.97,31.23147384]
[1641831892375,3.9999,136.03,135.97,31.23147384]
[1641831892776,3.9999,136.04,135.97,31.23147384]
[1641831893677,27.66479,136.09,135.99,5.88270483]
[1641831893878,3.9999,136.11,136.01,7.34780852]
[1641831894080,30.7634881,136.13,136.02,7.71841778]
[1641831894279,34.7633881,136.13,136.02,7.71841778]
[1641831894480,3.9999,136.12,136.02,7.71841778]
[1641831894679,30.7634881,136.13,136.02,1.837]
[1641831895079,3.0986981,136.13,136.02,1.837]
[1641831895280,3.0986981,136.13,136.06,5.87964678]
[1641831895481,3.0986981,136.13,136.07,27.66479]
[1641831895680,3.0986981,136.13,136.07,29.50079]
[1641831896283,3.09898246,136.12,136.07,29.50079]
[1641831896684,3.09898246,136.12,136.07,27.66479]
[1641831897182,3.09898246,136.12,136.08,1.836]
[1641831897582,3.09898246,136.12,136.07,27.66479]
[1641831898184,3.09898246,136.12,136.06,1.836]
[1641831898185,3.9999,136.1,136.06,1.836]
[1641831898385,3.9999,136.1,136.03,1.837]
[1641831898585,3.9999,136.1,136.02,1.837]
[1641831899187,3.09898246,136.12,136.03,4.16105583]
[1641831899388,3.09898246,136.12,136.04,1.837]
[1641831899589,15.33541723,136.19,136.11,27.66479]
[1641831899788,15.33541723,136.19,136.12,1.836]
[1641831901089,3.09844118,136.11,136.08,9.18003114]
[1641831901291,3.09844118,136.11,136.07,1.836]
[1641831901488,7.09834118,136.11,136.07,1.836]
[1641831901689,3.09844118,136.11,136.06,27.66479]
[1641831901891,3.09844118,136.11,136.04,1.837]
[1641831902590,4.0,136.1,136.04,1.837]
[1641831902794,3.9999,136.05,136.03,4.16105583]
[1641831902992,3.9999,136.04,136.01,15.33541723]
[1641831903191,3.9999,136.02,135.96,1.837]
[1641831903395,3.9999,135.97,135.95,56.40233782]
[1641831903592,63.32948,135.96,135.91,61.09516659]
[1641831903791,3.9999,135.92,135.91,61.09516659]
[1641831904192,3.9999,135.95,135.91,61.09516659]
[1641831904391,3.9999,135.92,135.91,61.09516659]
[1641831905394,3.9999,135.93,135.91,61.09516659]
[1641831905594,27.66479,135.96,135.91,61.09516659]
[1641831906195,3.9999,135.92,135.91,61.09516659]